fUST/lending_fUST_20240509
["ID","MTS","AMOUNT","RATE_DAILY","PERIOD"]
[326692153,1715250636328,-621.4054497,0.00016306,2]
[326692155,1715250636338,-391.44092118,0.00016818,2]
[326692157,1715250636349,-2340.69439263,0.00017161,2]
[326692159,1715250636361,-820.34229757,0.00017162,2]
[326692161,1715250636370,-617.98609664,0.00017164,2]
[326692163,1715250636380,-7399.33359777,0.00017164,2]
[326692171,1715250637654,24900.0,0.00014864,2]
[326692209,1715251244767,465.03,0.00010959,2]
[326692210,1715251834476,-2114.94996902,0.0001532,2]
[326692211,1715251834487,-41680.0,0.0001532,2]
[326692212,1715251834496,-24900.0,0.00015321,2]
[326692214,1715251834505,-397.709245,0.00015346,2]
[326692215,1715251834517,-412.580417,0.0001589,2]
[326692216,1715251834527,-601.74635059,0.00016248,2]
[326692217,1715251834538,-1723.90335816,0.00016345,2]
[326692218,1715251834549,-262.14470515,0.00016345,2]
[326692219,1715251834559,-4021.94558928,0.00016346,2]
[326692220,1715251834568,-389.73989725,0.00016965,2]
[326692221,1715251834578,-1984.35801835,0.00017164,2]
[326692222,1715251834587,-1630.7881973,0.00017165,2]
[326692223,1715251834596,-153.0,0.00017644,2]
[326692224,1715251834607,-389.73989723,0.00017699,2]
[326692225,1715251834616,-23148.22953482,0.00017997,5]
[326692226,1715251834625,-204.34881716,0.00017997,2]
[326692227,1715251834634,-816.06173448,0.00017997,2]
[326692228,1715251834644,-494.04224623,0.00017997,2]
[326692229,1715251834653,-314.47055148,0.00017998,2]
[326692230,1715251834662,-30696.61043851,0.00017998,2]
[326692245,1715251844928,-620.0131134,0.00017998,2]
[326692293,1715252388014,382.89229246,9.999e-05,2]
[326692294,1715252635658,292.19097324,9.999e-05,2]
[326692297,1715253039969,-171.11304447,0.00015605,2]
[326692302,1715253039983,-9383.69161612,0.00015703,2]
[326692305,1715253039998,-24900.0,0.00015707,2]
[326692309,1715253040010,-326.11905644,0.0001579,2]
[326692313,1715253040021,-162.877953,0.0001589,2]
[326692316,1715253040033,-198.854622,0.00015954,2]
[326692319,1715253040044,-250.0,0.0001597,2]
[326692322,1715253040058,-171.11304447,0.00016675,2]
[326692325,1715253040069,-326.1190564,0.00016818,2]
[326692327,1715253040081,-701.44722507,0.00016952,2]
[326692329,1715253040093,-291.82733832,0.00016953,2]
[326692330,1715253040105,-154.72324417,0.00016955,2]
[326692332,1715253040117,-39490.29362014,0.00016955,2]
[326692334,1715253040128,-171.11304447,0.00017745,2]
[326692336,1715253040146,-326.1190564,0.00017845,2]
[326692339,1715253040168,-246.41279238,0.00017875,2]
[326692341,1715253040183,-584.02714747,0.00017995,2]
[326692343,1715253040210,-2674.57927242,0.00017995,2]
[326692345,1715253040225,-1403.37861802,0.00017995,2]
[326692346,1715253040240,-154.94505041,0.00017995,2]
[326692347,1715253040261,-154.97449672,0.00017996,2]
[326692348,1715253040275,-1819.24222805,0.00017996,2]
[326692349,1715253040300,-7950.37253972,0.00018,2]
[326692350,1715253040312,-154.7215013,0.00018,2]
[326692351,1715253040332,-620.11437173,0.00018636,2]
[326692352,1715253040346,-150.863,0.00018747,2]
[326692353,1715253040364,-150.104,0.00018747,2]
[326692354,1715253040377,-494.317,0.0001883,2]
[326692355,1715253040401,-326.1190564,0.00018873,2]
[326692356,1715253040417,-2612.19610108,0.000189,5]
[326692370,1715253045020,-464.35744803,0.000189,5]
[326692412,1715253058533,-623.47270881,0.0001569,2]
[326692413,1715253058545,-17252.37678177,0.00015702,2]
[326692443,1715253063215,-609.0,0.00015702,2]
[326692444,1715253335946,24900.0,0.000147,2]
[326692445,1715253370706,198.854622,0.000147,2]
[326692448,1715253633480,3000.0,0.000147,2]
[326692491,1715253900254,17308.9826503,0.000147,2]
[326692492,1715254174011,744.67639595,0.000138,2]
[326692494,1715254235006,-189.30448835,0.000155,2]
[326692495,1715254235018,-188.20878023,0.00015601,2]
[326692496,1715254235029,-41680.0,0.00015696,2]
[326692498,1715254235041,-307.98306406,0.00015697,2]
[326692500,1715254235051,-525.63493982,0.00015697,2]
[326692502,1715254235062,-549.86052827,0.00015697,2]
[326692505,1715254235073,-305.85022862,0.00015697,2]
[326692508,1715254235084,-1399.99750126,0.00015697,2]
[326692511,1715254235094,-1350.90894836,0.00015697,2]
[326692514,1715254235105,-223.53871817,0.00015697,2]
[326692517,1715254235115,-206.52670524,0.00015697,2]
[326692519,1715254235127,-447.76467997,0.00015697,2]
[326692521,1715254235138,-483.66880495,0.00015697,2]
[326692523,1715254235152,-171.7902924,0.00015697,2]
[326692524,1715254235162,-733.70012784,0.00015697,2]
[326692525,1715254235172,-250.57986184,0.00015698,2]
[326692527,1715254235186,-193.21884001,0.000157,2]
[326692529,1715254235196,-15694.89103439,0.000157,2]
[326692531,1715254235207,-3852.76366909,0.00015701,2]
[326692532,1715254235217,-175.305256,0.0001589,2]
[326692533,1715254235230,-188.20878021,0.00017751,2]
[326692534,1715254235241,-1000.0,0.00018,2]
[326692535,1715254235251,-552.36025865,0.00018,2]
[326692536,1715254235261,-431.776654,0.000186,2]
[326692537,1715254235271,-197.13023391,0.00018684,2]
[326692538,1715254235281,-1233.42665835,0.000189,2]
[326692539,1715254235291,-364.01672571,0.00019,2]
[326692540,1715254235300,-166.394239,0.00019178,2]
[326692541,1715254235311,-166.487812,0.00019178,2]
[326692542,1715254235320,-185.709987,0.00019178,2]
[326692543,1715254235330,-1002.93632745,0.00019295,2]
[326692544,1715254235341,-155.21834635,0.00019374,2]
[326692545,1715254235351,-236.56307163,0.00019374,2]
[326692546,1715254235360,-1493.11557101,0.00019374,2]
[326692547,1715254235371,-174.79059791,0.00019374,2]
[326692548,1715254235381,-1691.18055078,0.00019374,2]
[326692549,1715254235391,-1091.87119292,0.00019374,2]
[326692550,1715254235402,-196.23042848,0.00019374,2]
[326692551,1715254235412,-155.97528981,0.00019374,2]
[326692552,1715254235422,-1000.0,0.00019398,2]
[326692553,1715254235434,-1000.0,0.00019399,2]
[326692554,1715254235444,-1000.0,0.00019418,2]
[326692555,1715254235453,-487.27089649,0.00019445,2]
[326692565,1715254247423,-157.70418712,0.0001925,2]
[326692569,1715254247435,-467.4279333,0.00019445,2]
[326692863,1715254808962,154.69061876,9.999e-05,2]
[326692864,1715254844521,816.46166498,9.999e-05,2]
[326692865,1715254853974,469.58481341,9.999e-05,2]
[326692866,1715254858999,770.40255084,0.0001,2]
[326692867,1715254870732,465.32076953,9.999e-05,2]
[326692868,1715254875380,154.69061876,9.999e-05,2]
[326692869,1715254918346,930.03083104,0.00014,2]
[326692876,1715254936340,154.86036889,9.999e-05,2]
[326692878,1715255090259,154.73694719,9.999e-05,2]
[326692886,1715255194277,154.73694719,9.999e-05,2]
[326692887,1715255195746,154.69061876,0.00014996,2]
[326692888,1715255209873,521.7247285,9.999e-05,2]
[326692889,1715255213739,154.69061876,0.00014996,2]
[326692890,1715255239819,154.69061876,0.00014994,2]
[326692891,1715255255723,207.132662,0.00014994,2]
[326692892,1715255256457,701.44722507,9.999e-05,2]
[326692893,1715255278898,1578.94023336,9.999e-05,2]
[326692894,1715255279259,194.13169488,9.999e-05,2]
[326692895,1715255280818,380.00879291,9.999e-05,2]
[326692896,1715255332060,1348.39587866,9.999e-05,2]
[326692897,1715255334466,158.20036641,9.999e-05,2]
[326692898,1715255341903,930.03083104,0.00014,2]
[326692899,1715255359900,930.03083104,0.0001499,2]
[326692909,1715255432518,-628.27045323,0.00015679,2]
[326692910,1715255432532,-41680.0,0.00015776,2]
[326692911,1715255432543,-9383.69161612,0.00015777,2]
[326692912,1715255432553,-1347.73910768,0.00015779,2]
[326692913,1715255432562,-158.48350794,0.00015779,2]
[326692914,1715255432572,-350.03880716,0.0001578,2]
[326692915,1715255432582,-2103.82416667,0.0001578,2]
[326692917,1715255432592,-194.03794188,0.00015781,2]
[326692919,1715255432601,-838.04668958,0.00015783,2]
[326692921,1715255432612,-1039.32673228,0.00015783,2]
[326692990,1715255444616,-930.03083104,0.00015678,2]
[326692995,1715255444628,-1215.77339326,0.00015783,2]
[326692999,1715255444638,-154.7792847,0.00015784,2]
[326693003,1715255444647,-1578.14462466,0.00015784,2]
[326693007,1715255444657,-311.84730404,0.00015785,2]
[326693011,1715255444667,-1336.28920915,0.00015887,2]
[326693014,1715255444676,-411.283776,0.0001589,2]
[326693018,1715255444686,-157.494708,0.0001589,2]
[326693020,1715255444695,-162.877953,0.0001589,2]
[326693023,1715255444706,-511.429151,0.00016351,2]
[326693026,1715255444716,-604.89828257,0.00016727,2]
[326693030,1715255444726,-193.21656713,0.00017115,2]
[326693032,1715255444736,-236.11595108,0.00017214,2]
[326693036,1715255444745,-483.90729918,0.00017215,2]
[326693039,1715255444757,-364.01672571,0.00018123,2]
[326693042,1715255444766,-294.30647378,0.00018124,2]
[326693044,1715255444776,-310.30553895,0.00018124,2]
[326693047,1715255444785,-186.55115227,0.00018125,2]
[326693050,1715255444795,-193.21656713,0.00018508,2]
[326693052,1715255444805,-155.04695249,0.00018586,2]
[326693055,1715255444815,-718.70282773,0.00018586,2]
[326693056,1715255444825,-154.73694719,0.00018586,2]
[326693058,1715255444834,-412.67758215,0.00018586,2]
[326693061,1715255444844,-617.87224931,0.00018587,2]
[326693062,1715255444853,-645.13435049,0.0001859,2]
[326693064,1715255444863,-1083.34262023,0.000188,2]
[326693066,1715255444872,-822.2844389,0.000189,2]
[326693068,1715255444882,-343.21193496,0.00019022,2]
[326693071,1715255444893,-41680.0,0.00019081,2]
[326693072,1715255444902,-527.50907274,0.00019082,2]
[326693074,1715255444911,-154.73694719,0.00019082,2]
[326693076,1715255444922,-1493.5731825,0.00019082,2]
[326693078,1715255444932,-154.73694719,0.00019082,2]
[326693080,1715255444943,-154.83679623,0.00019082,2]
[326693082,1715255444953,-409.73086388,0.00019082,2]
[326693084,1715255444962,-816.63039643,0.00019082,2]
[326693086,1715255444971,-154.73694719,0.00019082,2]
[326693088,1715255444981,-155.05175208,0.00019082,2]
[326693090,1715255444991,-206.68276306,0.00019082,2]
[326693092,1715255445000,-154.92484394,0.00019082,2]
[326693094,1715255445010,-154.73694719,0.00019082,2]
[326693096,1715255445023,-154.73694719,0.00019082,2]
[326693098,1715255445032,-315.31138865,0.00019082,2]
[326693100,1715255445042,-154.91322272,0.00019082,2]
[326693102,1715255445054,-154.99553986,0.00019082,2]
[326693104,1715255445063,-284.36708911,0.00019082,2]
[326693106,1715255445072,-447.0404404,0.00019082,2]
[326693108,1715255445081,-1623.69250947,0.00019082,2]
[326693110,1715255445090,-904.17611442,0.00019082,2]
[326693112,1715255445100,-584.20614554,0.00019082,2]
[326693114,1715255445110,-154.88543324,0.00019082,2]
[326693116,1715255445119,-154.93671587,0.00019082,2]
[326693118,1715255445129,-154.92559806,0.00019082,2]
[326693120,1715255445138,-156.39130606,0.00019082,2]
[326693122,1715255445147,-154.85180439,0.00019082,2]
[326693124,1715255445157,-1092.87842809,0.00019082,2]
[326693126,1715255445166,-744.4752283,0.00019082,2]
[326693128,1715255445176,-820.14233232,0.00019082,2]
[326693130,1715255445185,-940.61834724,0.00019082,2]
[326693132,1715255445195,-154.87951198,0.00019083,2]
[326693134,1715255445206,-2340.69439263,0.00019086,2]
[326693136,1715255445215,-494.0,0.00019092,2]
[326693138,1715255445224,-166.394239,0.00019178,2]
[326693140,1715255445233,-166.487812,0.00019178,2]
[326693142,1715255445242,-1000.0,0.00019232,2]
[326693144,1715255445251,-1000.0,0.00019232,2]
[326693146,1715255445260,-1000.0,0.00019235,2]
[326693148,1715255445270,-1000.0,0.00019243,2]
[326693150,1715255445279,-157.70418713,0.0001925,2]
[326693152,1715255445289,-1000.0,0.00019259,2]
[326693154,1715255445301,-1000.0,0.00019291,2]
[326693156,1715255445311,-1000.0,0.00019323,2]
[326693158,1715255445320,-1000.0,0.00019392,2]
[326693160,1715255445329,-1000.0,0.00019407,2]
[326693162,1715255445339,-45.30117021,0.00019445,2]
[326693164,1715255445349,-621.25671752,0.00019519,2]
[326693166,1715255445360,-154.80192616,0.00019635,2]
[326693168,1715255445370,-15220.00955579,0.0001984,2]
[326693170,1715255445381,-151.0,0.0001984,2]
[326693172,1715255445390,-151.0,0.0001984,2]
[326693174,1715255445400,-151.0,0.0001984,2]
[326693176,1715255445409,-151.0,0.0001984,2]
[326693178,1715255445419,-212.416992,0.0001984,2]
[326693180,1715255445431,-151.0,0.0001984,2]
[326693182,1715255445440,-151.0,0.0001984,2]
[326693184,1715255445450,-151.0,0.0001984,2]
[326693186,1715255445459,-151.0,0.0001984,2]
[326693188,1715255445468,-209.991533,0.0001984,2]
[326693190,1715255445478,-209.991533,0.0001984,2]
[326693192,1715255445487,-151.0,0.0001984,2]
[326693194,1715255445497,-547.3,0.0001985,2]
[326693196,1715255445507,-438.33017331,0.000199,2]
[326693198,1715255445516,-151.0,0.000199,2]
[326693200,1715255445527,-151.0,0.000199,2]
[326693202,1715255445537,-151.0,0.000199,2]
[326693204,1715255445554,-151.0,0.000199,2]
[326693206,1715255445564,-151.0,0.000199,2]
[326693208,1715255445574,-2000.0,0.000199,2]
[326693211,1715255445584,-167.240315,0.000199,2]
[326693212,1715255445594,-167.240315,0.000199,2]
[326693214,1715255445604,-193.21656713,0.000199,2]
[326693216,1715255445614,-150.0,0.00019914,2]
[326693219,1715255445626,-1000.0,0.00019937,2]
[326693221,1715255445636,-242.71,0.0001999,3]
[326693223,1715255445646,-728.13,0.0001999,3]
[326693225,1715255445655,-849.40273003,0.00019998,2]
[326693226,1715255445665,-151.0,0.00019999,2]
[326693228,1715255445674,-151.0,0.00019999,2]
[326693230,1715255445684,-500.0,0.00019999,2]
[326693232,1715255445693,-158.43592859,0.00019999,2]
[326693234,1715255445703,-500.0,0.00019999,2]
[326693236,1715255445712,-500.0,0.00019999,2]
[326693239,1715255445722,-500.0,0.00019999,2]
[326693240,1715255445732,-500.0,0.00019999,2]
[326693241,1715255445741,-499.99999999,0.00019999,2]
[326693242,1715255445750,-10035.83799286,0.0002,5]
[326693243,1715255445760,-17483.52562433,0.0002,2]
[326693244,1715255445770,-400.0,0.0002,2]
[326693245,1715255445780,-521.64031409,0.0002,2]
[326693246,1715255445791,-279.0021805,0.0002,2]
[326693247,1715255445804,-379.96231687,0.0002,2]
[326693248,1715255445814,-150.0,0.0002,2]
[326693249,1715255445824,-67507.49755129,0.0002,2]
[326693250,1715255445834,-32434.46899728,0.0002,2]
[326693251,1715255445843,-160.0,0.0002,2]
[326693252,1715255445854,-991.6724039,0.0002,2]
[326693253,1715255445863,-156.05843597,0.0002,2]
[326693254,1715255445873,-160.0,0.0002,2]
[326693255,1715255445882,-151.0,0.0002,2]
[326693256,1715255445892,-151.331717,0.0002,2]
[326693257,1715255445902,-151.0,0.0002,2]
[326693258,1715255445911,-151.0,0.0002,2]
[326693259,1715255445923,-151.0,0.0002,2]
[326693261,1715255445933,-151.0,0.0002,2]
[326693263,1715255445943,-151.994888,0.0002,2]
[326693265,1715255445952,-151.0,0.0002,2]
[326693267,1715255445961,-156.860548,0.0002,2]
[326693269,1715255445971,-151.0,0.0002,2]
[326693271,1715255445980,-151.0,0.0002,2]
[326693273,1715255445989,-151.0,0.0002,2]
[326693275,1715255445999,-151.0,0.0002,2]
[326693277,1715255446008,-151.0,0.0002,2]
[326693279,1715255446020,-192.187842,0.0002,2]
[326693281,1715255446030,-151.0,0.0002,2]
[326693283,1715255446040,-151.0,0.0002,2]
[326693285,1715255446050,-151.0,0.0002,2]
[326693287,1715255446059,-151.0,0.0002,2]
[326693289,1715255446069,-151.0,0.0002,2]
[326693291,1715255446078,-243.574141,0.0002,2]
[326693293,1715255446087,-151.349723,0.0002,2]
[326693295,1715255446096,-151.0,0.0002,2]
[326693297,1715255446105,-151.0,0.0002,2]
[326693299,1715255446115,-151.0,0.0002,2]
[326693301,1715255446124,-249.907064,0.0002,2]
[326693303,1715255446133,-32485.99377091,0.0002,2]
[326693305,1715255446142,-151.0,0.0002,2]
[326693307,1715255446152,-151.0,0.0002,2]
[326693309,1715255446161,-151.0,0.0002,2]
[326693310,1715255446171,-151.0,0.0002,2]
[326693311,1715255446180,-151.0,0.0002,2]
[326693312,1715255446191,-229.886032,0.0002,2]
[326693313,1715255446200,-151.643152,0.0002,2]
[326693314,1715255446209,-152.706429,0.0002,2]
[326693315,1715255446218,-152.399864,0.0002,2]
[326693316,1715255446227,-186.155749,0.0002,2]
[326693317,1715255446236,-167.240315,0.0002,2]
[326693318,1715255446246,-167.240315,0.0002,2]
[326693319,1715255446255,-167.240315,0.0002,2]
[326693320,1715255446264,-167.240315,0.0002,2]
[326693321,1715255446274,-167.240315,0.0002,2]
[326693322,1715255446283,-167.240315,0.0002,2]
[326693323,1715255446292,-167.240315,0.0002,2]
[326693324,1715255446303,-167.240315,0.0002,2]
[326693325,1715255446312,-151.0,0.0002,2]
[326693326,1715255446321,-151.0,0.0002,2]
[326693327,1715255446331,-151.0,0.0002,2]
[326693328,1715255446340,-151.0,0.0002,2]
[326693329,1715255446350,-151.0,0.0002,2]
[326693330,1715255446359,-225.457307,0.0002,2]
[326693331,1715255446368,-151.0,0.0002,2]
[326693332,1715255446378,-151.0,0.0002,2]
[326693333,1715255446387,-151.0,0.0002,2]
[326693335,1715255446396,-168.657552,0.0002,2]
[326693337,1715255446406,-151.0,0.0002,2]
[326693339,1715255446415,-151.0,0.0002,2]
[326693341,1715255446425,-151.0,0.0002,2]
[326693343,1715255446434,-151.0,0.0002,2]
[326693345,1715255446443,-209.991533,0.0002,2]
[326693347,1715255446453,-209.991533,0.0002,2]
[326693349,1715255446462,-209.991533,0.0002,2]
[326693351,1715255446471,-209.991533,0.0002,2]
[326693353,1715255446480,-209.991533,0.0002,2]
[326693355,1715255446491,-209.991533,0.0002,2]
[326693357,1715255446501,-209.991533,0.0002,2]
[326693359,1715255446510,-209.991533,0.0002,2]
[326693361,1715255446521,-151.0,0.0002,2]
[326693363,1715255446534,-151.0,0.0002,2]
[326693365,1715255446547,-151.0,0.0002,2]
[326693367,1715255446556,-151.0,0.0002,2]
[326693369,1715255446566,-151.0,0.0002,2]
[326693370,1715255446577,-151.0,0.0002,2]
[326693372,1715255446586,-276.712491,0.0002,2]
[326693374,1715255446596,-200.0,0.0002,2]
[326693376,1715255446605,-1003.204093,0.0002,2]
[326693378,1715255446619,-244.094126,0.0002,2]
[326693380,1715255446630,-244.094126,0.0002,2]
[326693383,1715255446639,-244.094126,0.0002,2]
[326693385,1715255446649,-244.094126,0.0002,2]
[326693386,1715255446658,-151.617812,0.0002,2]
[326693388,1715255446668,-244.094126,0.0002,2]
[326693390,1715255446676,-244.094126,0.0002,2]
[326693392,1715255446686,-244.094126,0.0002,2]
[326693405,1715255446799,-244.094126,0.0002,2]
[326693407,1715255446808,-151.0,0.0002,2]
[326693409,1715255446818,-151.0,0.0002,2]
[326693411,1715255446828,-151.782151,0.0002,2]
[326693413,1715255446838,-151.0,0.0002,2]
[326693415,1715255446847,-151.0,0.0002,2]
[326693417,1715255446857,-151.0,0.0002,2]
[326693419,1715255446867,-151.0,0.0002,2]
[326693421,1715255446876,-231.784754,0.0002,2]
[326693423,1715255446886,-151.0,0.0002,2]
[326693425,1715255446896,-151.0,0.0002,2]
[326693427,1715255446905,-151.0,0.0002,2]
[326693429,1715255446915,-151.0,0.0002,2]
[326693431,1715255446924,-151.0,0.00020105,2]
[326693433,1715255446934,-209.991533,0.00020105,2]
[326693435,1715255446944,-209.991533,0.00020105,2]
[326693437,1715255446953,-210.781119,0.00020105,2]
[326693439,1715255446965,-26546.96419475,0.00020105,3]
[326693441,1715255446974,-13541.20823274,0.00020106,2]
[326693443,1715255446983,-257.643546,0.00020106,2]
[326693445,1715255446992,-151.0,0.00020106,2]
[326693447,1715255447002,-151.0,0.00020106,2]
[326693449,1715255447012,-224.095397,0.00020106,2]
[326693450,1715255447021,-167.240315,0.00020106,2]
[326693451,1715255447031,-167.240315,0.00020106,2]
[326693452,1715255447040,-151.0,0.00020106,2]
[326693453,1715255447052,-244.094126,0.00020106,2]
[326693454,1715255447062,-244.094126,0.00020106,2]
[326693455,1715255447071,-167.240315,0.00020109,2]
[326693456,1715255447080,-167.240315,0.00020109,2]
[326693457,1715255447090,-151.0,0.00020109,2]
[326693458,1715255447100,-209.991533,0.00020109,2]
[326693459,1715255447110,-209.991533,0.00020109,2]
[326693460,1715255447119,-151.0,0.00020109,2]
[326693461,1715255447129,-244.094126,0.00020109,2]
[326693462,1715255447139,-244.094126,0.00020109,2]
[326693463,1715255447148,-1424.38144003,0.00020109,2]
[326693464,1715255447157,-155.04239008,0.00020111,2]
[326693465,1715255447167,-547.3,0.00020312,2]
[326693466,1715255447176,-150.0,0.0002037,2]
[326693467,1715255447186,-620.06283588,0.00020495,2]
[326693468,1715255447195,-209.991533,0.00020726,2]
[326693469,1715255447205,-209.991533,0.00020726,2]
[326693470,1715255447214,-151.0,0.00020726,2]
[326693471,1715255447224,-244.094126,0.00020726,2]
[326693472,1715255447234,-244.094126,0.00020726,2]
[326693473,1715255447243,-55555.0,0.00020726,3]
[326693474,1715255447253,-547.3,0.00020774,2]
[326693475,1715255447264,-150.0,0.00020826,2]
[326693476,1715255447274,-675.37046474,0.00020911,2]
[326693477,1715255447283,-10000.0,0.00021,2]
[326693478,1715255447293,-151.0,0.00021,2]
[326693479,1715255447303,-151.0,0.00021,2]
[326693480,1715255447313,-728.12,0.000212,3]
[326693481,1715255447322,-167.240315,0.000212,2]
[326693482,1715255447332,-167.240315,0.000212,2]
[326693483,1715255447342,-547.3,0.00021236,3]
[326693484,1715255447352,-150.0,0.00021282,3]
[326693485,1715255447362,-485.42,0.0002136,3]
[326693486,1715255447372,-5600.0,0.000215,6]
[326693487,1715255447382,-151.0,0.000215,2]
[326693488,1715255447391,-209.991533,0.000215,2]
[326693489,1715255447403,-209.991533,0.000215,2]
[326693490,1715255447412,-151.0,0.000215,2]
[326693491,1715255447422,-244.094126,0.000215,2]
[326693492,1715255447431,-244.094126,0.000215,2]
[326693493,1715255447442,-620.00314179,0.0002152,2]
[326693494,1715255447451,-150.0,0.00021566,2]
[326693495,1715255447461,-166.666666,0.00021644,2]
[326693496,1715255447471,-547.3,0.00021698,3]
[326693497,1715255447480,-150.0,0.00021738,3]
[326693498,1715255447490,-150.0,0.00021791,2]
[326693499,1715255447500,-151.0,0.000219,2]
[326693500,1715255447510,-151.0,0.000219,2]
[326693501,1715255447520,-151.0,0.000219,2]
[326693502,1715255447530,-151.0,0.000219,2]
[326693503,1715255447541,-167.240315,0.000219,2]
[326693504,1715255447556,-167.240315,0.000219,2]
[326693505,1715255447566,-151.0,0.000219,2]
[326693506,1715255447576,-151.0,0.00021918,2]
[326693507,1715255447586,-151.0,0.00021918,2]
[326693508,1715255447597,-151.0,0.00021918,2]
[326693509,1715255447607,-151.0,0.00021918,2]
[326693510,1715255447616,-151.0,0.00021918,2]
[326693511,1715255447629,-151.0,0.00021918,2]
[326693512,1715255447639,-151.0,0.00021918,2]
[326693513,1715255447649,-151.0,0.00021918,2]
[326693514,1715255447658,-250.570742,0.00021918,2]
[326693515,1715255447669,-644.974569,0.00021918,2]
[326693516,1715255447680,-644.974569,0.00021918,2]
[326693517,1715255447689,-644.974569,0.00021918,2]
[326693518,1715255447699,-644.974569,0.00021918,2]
[326693519,1715255447708,-644.974569,0.00021918,2]
[326693520,1715255447718,-644.974569,0.00021918,2]
[326693521,1715255447727,-644.974569,0.00021918,2]
[326693522,1715255447736,-644.974569,0.00021918,2]
[326693523,1715255447746,-644.974569,0.00021918,2]
[326693524,1715255447755,-644.974569,0.00021918,2]
[326693525,1715255447765,-644.974569,0.00021918,2]
[326693526,1715255447774,-644.974569,0.00021918,2]
[326693527,1715255447783,-179.75471099,0.00021918,2]
[326693555,1715255619254,2629.7346858,0.00014187,2]
[326693556,1715255619334,2629.7346848,0.00014286,2]
[326693557,1715255974234,409.82935884,9.999e-05,2]
[326693559,1715256000903,484.01447361,9.999e-05,2]
[326693560,1715256002411,300.0,5.5e-07,2]
[326693561,1715256047158,816.46166498,9.999e-05,2]
[326693562,1715256524990,5669.0457216,9.999e-05,2]
[326693564,1715256633952,-738.32909802,0.00015235,2]
[326693570,1715256633965,-1156.05608771,0.00015235,2]
[326693573,1715256633976,-153.23142213,0.00015236,2]
[326693579,1715256633986,-635.70041094,0.00015239,2]
[326693581,1715256633997,-262.14470515,0.00015332,2]
[326693584,1715256634007,-4796.47547761,0.00015333,2]
[326693586,1715256634018,-1453.99588173,0.00015333,2]
[326693588,1715256634031,-2637.25044214,0.00015333,2]
[326693590,1715256634042,-495.96981464,0.00015333,2]
[326693592,1715256634053,-1175.02337728,0.00015334,2]
[326693594,1715256634065,-548.87998088,0.00015334,2]
[326693596,1715256634074,-735.64942142,0.00015335,2]
[326693598,1715256634085,-40944.35057858,0.00015335,2]
[326693600,1715256634095,-24900.0,0.0001534,2]
[326693602,1715256634104,-860.05384123,0.00015789,2]
[326693604,1715256634114,-255.714575,0.00015889,2]
[326693606,1715256634124,-175.305256,0.0001589,2]
[326693607,1715256634133,-1630.7881973,0.00016883,2]
[326693609,1715256634143,-815.86176923,0.00016891,2]
[326693611,1715256634153,-494.04224623,0.0001699,2]
[326693613,1715256634162,-314.37205652,0.00016991,2]
[326693615,1715256634172,-204.24164273,0.00016991,2]
[326693617,1715256634181,-3831.7150195,0.00016995,2]
[326693619,1715256634191,-860.05384123,0.00017296,2]
[326693621,1715256634200,-34900.01715366,0.00017989,2]
[326693623,1715256634210,-557.0764547,0.00017998,2]
[326693625,1715256634219,-189.65271409,0.00018,2]
[326693627,1715256634228,-494.0,0.00018695,2]
[326693628,1715256634237,-860.05384123,0.00018804,2]
[326693630,1715256634246,-6973.37646826,0.00018878,2]
[326693632,1715256634256,-548.18962594,0.000189,2]
[326693634,1715256634265,-185.709987,0.00019178,2]